bitfinex/quotes_BTCUSD_20250314
["timestamp","ask_amount","ask_price","bid_price","bid_amount"]
[1741937483607,0.243149,82254.0,82252.0,0.243149]
[1741937483829,0.243147,82255.0,82252.0,0.243149]
[1741937484169,0.243147,82255.0,82253.0,0.243151]
[1741937484285,0.243147,82255.0,82252.0,0.243149]
[1741937484689,0.24315,82254.0,82252.0,0.003]
[1741937484951,0.255303,82255.0,82252.0,0.246155]
[1741937485127,0.243151,82254.0,82252.0,0.003]
[1741937485540,0.243146,82255.0,82253.0,0.003]
[1741937485762,0.243144,82256.0,82253.0,0.243151]
[1741937486062,0.243145,82256.0,82253.0,0.3033193]
[1741937486366,0.555281,82263.0,82258.0,0.243137]
[1741937486571,0.012156,82261.0,82256.0,0.012157]
[1741937486872,0.243135,82259.0,82256.0,0.243142]
[1741937487033,0.012156,82260.0,82255.0,0.24314]
[1741937487372,0.243147,82255.0,82252.0,0.257311]
[1741937487519,0.243147,82255.0,82252.0,0.255311]
[1741937487720,0.243145,82256.0,82253.0,0.243149]
[1741937488199,0.243147,82255.0,82253.0,0.243149]
[1741937488375,0.243145,82256.0,82253.0,0.245149]
[1741937488801,0.243149,82254.0,82253.0,0.002]
[1741937489133,0.255306,82254.0,82253.0,0.002]
[1741937489469,0.34152031,82254.0,82253.0,0.002]
[1741937489875,0.243184,82242.0,82240.0,0.24319]
[1741937490089,0.243183,82243.0,82241.0,0.243187]
[1741937490289,0.243183,82243.0,82239.0,0.255352]
[1741937490566,0.243185,82242.0,82239.0,0.255352]
[1741937490899,0.243185,82242.0,82239.0,0.243193]
[1741937491101,0.243185,82242.0,82239.0,0.24331255]
[1741937491304,0.243187,82241.0,82239.0,0.24331255]
[1741937491659,0.243184,82242.0,82239.0,0.00511955]
[1741937491817,0.243184,82242.0,82239.0,0.24831155]
[1741937492003,0.243184,82242.0,82239.0,0.24331155]
[1741937492335,0.243184,82242.0,82239.0,0.24831155]
[1741937492554,0.243187,82241.0,82239.0,0.24831255]
[1741937492770,0.255349,82240.0,82239.0,0.00511955]
[1741937493362,0.255349,82240.0,82239.0,0.01011955]
[1741937493565,0.255349,82240.0,82239.0,0.00028865]
[1741937493974,0.255349,82240.0,82239.0,0.01028865]
[1741937494181,0.255349,82240.0,82239.0,0.00528865]
[1741937494624,0.255349,82240.0,82239.0,0.00028865]
[1741937494792,0.255349,82240.0,82239.0,0.00528865]
[1741937495762,0.255349,82240.0,82239.0,0.01128865]
[1741937496144,0.24319,82240.0,82239.0,0.01128865]
[1741937496345,0.255349,82240.0,82239.0,0.01128865]
[1741937497169,0.255343,82242.0,82239.0,0.01128865]
[1741937497450,0.243184,82242.0,82239.0,0.01128865]
[1741937497643,0.243185,82243.0,82239.0,0.01128865]
[1741937497884,0.243181,82245.0,82242.0,0.243183]
[1741937498088,0.243166,82249.0,82242.0,0.012159]
[1741937498302,0.243164,82249.0,82244.0,0.012158]
[1741937498534,0.255311,82253.0,82245.0,0.012158]
[1741937498727,0.3,82252.0,82250.0,0.24316]
[1741937498929,0.243134,82260.0,82254.0,0.255306]
[1741937499131,0.3,82259.0,82255.0,0.2553]
[1741937499335,0.543136,82259.0,82256.0,0.243142]
[1741937499551,0.3,82257.0,82256.0,0.243142]
[1741937499682,0.3,82257.0,82255.0,0.255303]
[1741937499888,0.3,82257.0,82256.0,0.243143]
[1741937500331,0.3,82257.0,82255.0,0.255303]
[1741937500688,0.3,82257.0,82256.0,0.243143]
[1741937500984,0.3,82257.0,82255.0,0.255303]
[1741937500985,0.3,82257.0,82254.0,0.243146]
[1741937501234,0.255296,82259.0,82255.0,0.243145]
[1741937501400,0.56264203,82260.0,82256.0,0.012157]
[1741937501599,0.3,82260.0,82259.0,0.243134]
[1741937501852,0.3,82260.0,82259.0,0.25529]
[1741937502298,0.3,82261.0,82259.0,0.25529]
[1741937502497,0.543128,82261.0,82258.0,0.255291]
[1741937502769,0.012156,82260.0,82256.0,0.001]
[1741937502929,0.24314,82257.0,82255.0,0.243146]
[1741937503327,0.24314,82257.0,82254.0,0.244148]
[1741937503579,0.255303,82255.0,82250.0,0.1249]
[1741937503752,0.243154,82253.0,82250.0,0.368061]
[1741937503958,0.243149,82254.0,82250.0,0.1249]
[1741937504136,0.243149,82254.0,82250.0,0.137058]
[1741937504339,0.243149,82254.0,82251.0,0.243157]
[1741937504705,0.243146,82255.0,82254.0,0.001]
[1741937505092,0.255303,82255.0,82254.0,0.001]
[1741937505391,0.012156,82259.0,82254.0,0.001]
[1741937505392,0.54313,82261.0,82254.0,0.255305]
[1741937505603,0.243132,82260.0,82258.0,0.243136]
[1741937505796,0.243132,82260.0,82256.0,0.255299]
[1741937505999,0.012156,82262.0,82258.0,0.243134]
[1741937506200,0.3,82259.0,82256.0,0.255299]
[1741937506402,0.3,82262.0,82257.0,0.012157]
[1741937506611,0.3,82262.0,82260.0,0.243131]
[1741937506803,0.3,82262.0,82261.0,0.243128]
[1741937507152,0.24314,82257.0,82256.0,0.002]
[1741937507356,0.243146,82255.0,82254.0,0.001]
[1741937507556,0.243146,82255.0,82252.0,0.243154]
[1741937507815,0.243149,82254.0,82251.0,0.243155]
[1741937508335,0.243146,82255.0,82252.0,0.243154]
[1741937508517,0.243148,82256.0,82253.0,0.243151]
[1741937508742,0.243146,82255.0,82252.0,0.246154]
[1741937509414,0.243149,82254.0,82252.0,0.003]
[1741937510071,0.243143,82256.0,82253.0,0.243149]
[1741937510241,0.24312,82264.0,82260.0,0.243129]
[1741937510427,0.24312,82264.0,82260.0,0.012156]
[1741937510628,0.243125,82262.0,82259.0,0.012156]
[1741937510826,0.3,82265.0,82264.0,0.243119]
[1741937511253,0.3,82265.0,82262.0,0.320325]
[1741937511254,0.543122,82263.0,82262.0,0.0772]
[1741937511454,0.012156,82262.0,82258.0,0.243132]
[1741937511690,0.243129,82261.0,82260.0,0.001]
[1741937512214,0.255285,82261.0,82260.0,0.00111955]
[1741937512361,0.37524589,82261.0,82260.0,0.00111955]
[1741937512565,0.37524589,82261.0,82260.0,0.00211955]
[1741937512934,0.255285,82261.0,82260.0,0.00111955]
[1741937515410,0.255285,82261.0,82260.0,0.00011955]
[1741937515808,0.255285,82261.0,82260.0,0.00111955]
[1741937517139,0.3,82263.0,82260.0,0.24424955]
[1741937517459,0.543124,82263.0,82260.0,0.25640555]
[1741937517671,0.3,82262.0,82260.0,0.24424955]
[1741937517869,0.243128,82261.0,82260.0,0.00111955]
[1741937518070,0.255284,82261.0,82260.0,0.00111955]
[1741937518890,0.3,82266.0,82265.0,0.243114]
[1741937519117,0.312156,82263.0,82261.0,0.078]
[1741937519316,0.3,82262.0,82261.0,0.078]
[1741937521699,0.555281,82262.0,82261.0,0.078]
[1741937522278,0.255284,82261.0,82260.0,0.00011955]
[1741937523499,0.3,82262.0,82261.0,0.243128]
[1741937523753,0.143128,82261.0,82260.0,0.00111955]
[1741937524140,0.143128,82261.0,82260.0,0.00211955]
[1741937524346,0.3,82262.0,82260.0,0.00211955]
[1741937524590,0.3,82262.0,82261.0,0.255284]
[1741937524777,0.3,82262.0,82261.0,0.243128]
[1741937525140,0.3,82262.0,82260.0,0.25740555]
[1741937525601,0.243128,82261.0,82260.0,0.00111955]
[1741937525884,0.3,82262.0,82260.0,0.00011955]
[1741937526054,0.012156,82261.0,82260.0,0.00011955]
[1741937526242,0.243128,82261.0,82260.0,0.00111955]
[1741937526442,0.243128,82261.0,82260.0,0.00011955]
[1741937526794,0.255284,82261.0,82260.0,0.00111955]
[1741937526947,0.012155,82264.0,82260.0,0.00211955]
[1741937527128,0.243123,82263.0,82260.0,0.00211955]
[1741937527323,0.243125,82262.0,82260.0,0.00211955]
[1741937527551,0.255279,82263.0,82260.0,0.00211955]
[1741937527753,0.243128,82261.0,82260.0,0.00211955]
[1741937527976,0.243127,82262.0,82260.0,0.00211955]
[1741937528149,0.243128,82261.0,82260.0,0.00211955]
[1741937528787,0.243128,82261.0,82260.0,0.06021813]
[1741937528989,0.243125,82262.0,82260.0,0.30234913]
[1741937529188,0.3124932,82269.0,82260.0,0.07137413]
[1741937529403,0.243113,82266.0,82263.0,0.243116]
[1741937529590,0.243113,82266.0,82260.0,0.01227555]
[1741937529591,0.243121,82264.0,82260.0,0.25540555]
[1741937529738,0.243126,82262.0,82260.0,0.00211955]
[1741937529946,0.243126,82262.0,82260.0,0.06021623]
[1741937530160,0.243126,82262.0,82260.0,0.05921623]
[1741937530359,0.0013382,82269.0,82268.0,0.243107]
[1741937530573,0.0003382,82269.0,82268.0,0.377862]
[1741937531659,0.0003382,82269.0,82268.0,0.512982]
[1741937532618,0.0013382,82269.0,82268.0,0.512982]
[1741937533036,0.0003382,82269.0,82268.0,0.515982]
[1741937533236,0.0003382,82269.0,82268.0,0.518982]
[1741937533640,0.0003382,82269.0,82268.0,0.512982]
[1741937533940,0.0003382,82269.0,82268.0,0.516982]
[1741937534268,0.0003382,82269.0,82268.0,0.520982]
[1741937534826,0.0003382,82269.0,82268.0,0.385862]
[1741937540181,0.0003382,82269.0,82268.0,0.385862]
[1741937543929,0.0003382,82269.0,82268.0,0.3860312]
[1741937547174,0.0003382,82269.0,82268.0,0.3780312]
[1741937547627,0.0003382,82269.0,82268.0,0.3820312]
[1741937548187,0.0003382,82269.0,82268.0,0.39657205]
[1741937548816,0.0003382,82269.0,82268.0,0.39257205]
[1741937549231,0.0003382,82269.0,82268.0,0.39857205]
[1741937549431,0.0003382,82269.0,82268.0,0.40257205]
[1741937549652,0.0003382,82269.0,82268.0,0.4349719]
[1741937549910,0.0003382,82269.0,82268.0,0.4309719]
[1741937550117,0.0003382,82269.0,82268.0,0.4369719]
[1741937550333,2e-07,82269.0,82268.0,0.8413865]
[1741937551935,2e-07,82269.0,82268.0,1.1913865]
[1741937552597,2e-07,82269.0,82268.0,2.6913865]
[1741937554490,2e-07,82269.0,82268.0,1.1913865]
[1741937557376,2e-07,82269.0,82268.0,1.1413865]
[1741937557855,2e-07,82269.0,82268.0,1.1913865]
[1741937560533,2e-07,82269.0,82268.0,2.6913865]
[1741937560889,0.3431892,82298.0,82294.0,0.243028]
[1741937560890,0.243023,82297.0,82294.0,0.243028]
[1741937561094,0.33493298,82298.0,82296.0,0.243024]
[1741937561526,0.09191298,82298.0,82295.0,0.243027]
[1741937562221,0.09232293,82298.0,82295.0,0.243027]
[1741937562605,0.33534193,82298.0,82296.0,0.001]
[1741937562809,0.323622,82297.0,82296.0,0.001]
[1741937563104,0.0806,82297.0,82296.0,0.001]
[1741937563381,0.0806,82297.0,82296.0,0.244025]
[1741937563728,0.0806,82297.0,82296.0,0.243025]
[1741937563943,0.0806,82297.0,82296.0,0.255176]
[1741937564151,0.09232293,82298.0,82297.0,0.255173]
[1741937565673,0.09232293,82298.0,82297.0,0.256173]
[1741937566062,0.09232293,82298.0,82297.0,0.332973]
[1741937566671,0.09232293,82298.0,82297.0,0.331973]
[1741937566871,0.09232293,82298.0,82297.0,0.343973]
[1741937570007,0.09232293,82298.0,82297.0,0.337973]
[1741937570212,0.09232293,82298.0,82297.0,0.331973]
[1741937570383,0.09232293,82298.0,82297.0,0.336973]
[1741937570611,0.09232293,82298.0,82297.0,0.341973]
[1741937570929,0.09232293,82298.0,82297.0,0.265173]
[1741937572063,0.09232293,82298.0,82297.0,0.260173]
[1741937572470,0.09232293,82298.0,82297.0,0.259173]
[1741937572668,0.09232293,82298.0,82297.0,0.263173]
[1741937572890,0.09232293,82298.0,82297.0,0.259173]
[1741937573429,0.09232293,82298.0,82297.0,0.263173]
[1741937578859,0.09232293,82298.0,82297.0,0.2635112]
[1741937586020,0.19232293,82298.0,82297.0,0.2635112]
[1741937595187,0.19232293,82298.0,82297.0,0.3442112]
[1741937598981,0.19232293,82298.0,82297.0,0.3402112]
[1741937599443,0.19232293,82298.0,82297.0,0.3412112]
[1741937599650,0.19232293,82298.0,82297.0,0.3462112]
[1741937605804,0.19232293,82298.0,82297.0,0.3412112]
[1741937606331,0.19232293,82298.0,82297.0,0.3362112]
[1741937606500,0.19232293,82298.0,82297.0,0.3412112]
[1741937607265,0.19232293,82298.0,82297.0,0.3462112]
[1741937618771,0.19232293,82298.0,82297.0,0.2655112]
[1741937622551,0.0008,82309.0,82297.0,0.2655112]
[1741937622552,0.242984,82310.0,82308.0,0.242986]
[1741937622743,0.00012286,82310.0,82308.0,0.242986]
[1741937622905,0.00012286,82310.0,82309.0,0.242986]
[1741937623300,0.00012286,82310.0,82308.0,0.242986]
[1741937623730,0.00012286,82310.0,82309.0,0.242986]
[1741937624052,0.00012286,82310.0,82309.0,0.244986]
[1741937624406,0.00012286,82310.0,82309.0,0.242986]
[1741937624599,0.24310586,82310.0,82308.0,0.002]
[1741937624874,0.00012286,82310.0,82309.0,0.242986]
[1741937625590,0.00029196,82310.0,82309.0,0.242986]
[1741937626062,0.00029196,82310.0,82309.0,0.244986]
[1741937626261,0.00029196,82310.0,82309.0,0.002]
[1741937626977,0.00029196,82310.0,82309.0,0.244986]
[1741937627131,0.00029196,82310.0,82309.0,0.004]
[1741937627333,0.00029196,82310.0,82309.0,0.246986]
[1741937628279,0.24327496,82310.0,82309.0,0.004]
[1741937629261,0.00029196,82310.0,82309.0,0.004]
[1741937630491,0.24327496,82310.0,82309.0,0.004]
[1741937630909,0.00029196,82310.0,82309.0,0.004]
[1741937631564,0.00029196,82310.0,82309.0,0.246986]
[1741937632158,0.00029196,82310.0,82309.0,0.004]
[1741937632357,0.24327496,82310.0,82309.0,0.004]
[1741937632559,0.07850953,82310.0,82309.0,0.004]
[1741937632777,0.68102396,82310.0,82309.0,0.004]
[1741937633498,0.69556481,82310.0,82309.0,0.004]
[1741937633855,0.334069,82298.0,82286.0,0.243053]
[1741937634060,0.334069,82298.0,82286.0,0.243054]
[1741937634262,0.334069,82298.0,82285.0,0.255204]
[1741937634910,0.334069,82298.0,82286.0,0.255204]
[1741937635090,0.334069,82298.0,82297.0,0.0023382]
[1741937635459,0.334069,82298.0,82297.0,0.0043382]
[1741937636197,0.08600948,82298.0,82297.0,0.0043382]
[1741937636414,0.32902848,82298.0,82297.0,0.0043382]
[1741937637185,0.34117848,82298.0,82297.0,0.0023382]
[1741937637671,0.34117848,82298.0,82297.0,0.0033382]
[1741937639053,0.64117848,82298.0,82297.0,0.0033382]
[1741937639252,0.77568022,82298.0,82297.0,0.0033382]
[1741937640988,0.77568022,82298.0,82297.0,0.0003382]
[1741937642292,0.65571933,82298.0,82297.0,0.0003382]
[1741937642655,0.61490985,82298.0,82297.0,0.0003382]
[1741937644430,0.555169,82298.0,82297.0,0.0003382]
[1741937644672,0.690089,82298.0,82297.0,0.0003382]
[1741937646495,0.243064,82283.0,82279.0,0.2214122]
[1741937646935,0.012153,82283.0,82277.0,0.335233]
[1741937647080,0.243073,82280.0,82277.0,0.323081]
[1741937647288,0.255219,82283.0,82278.0,0.243076]
[1741937647632,0.24307,82281.0,82279.0,0.003]
[1741937647843,0.243068,82282.0,82279.0,0.246074]
[1741937648013,0.255219,82283.0,82279.0,0.249074]
[1741937648213,0.243067,82282.0,82279.0,0.003]
[1741937648416,0.012153,82283.0,82279.0,0.243074]
[1741937648645,0.243067,82282.0,82279.0,0.30910199]
[1741937648853,0.24303,82295.0,82289.0,0.012152]
[1741937649069,0.3,82292.0,82289.0,0.0788]
[1741937649291,0.255194,82290.0,82289.0,0.0788]
[1741937649874,0.243051,82287.0,82284.0,0.0788]
[1741937650059,0.255209,82285.0,82284.0,0.0788]
[1741937650928,0.243073,82280.0,82279.0,0.003]
[1741937651122,0.255226,82280.0,82279.0,0.003]
[1741937651923,0.255226,82280.0,82278.0,0.00040995]
[1741937651924,0.255228,82279.0,82278.0,0.00040995]
[1741937652328,0.243075,82279.0,82278.0,0.00040995]
[1741937652530,0.255226,82280.0,82278.0,0.00040995]
[1741937652531,0.243073,82280.0,82278.0,0.00040995]
[1741937652747,0.243075,82279.0,82278.0,0.00040995]
[1741937653490,0.255228,82279.0,82278.0,0.00040995]
[1741937653641,0.255228,82279.0,82278.0,0.00340995]
[1741937654002,0.255228,82279.0,82278.0,0.00040995]
[1741937654203,0.255228,82279.0,82278.0,0.00640995]
[1741937654828,0.243073,82280.0,82278.0,0.00640995]
[1741937655050,0.255228,82279.0,82278.0,0.00640995]
[1741937655665,0.255228,82279.0,82278.0,0.00340995]
[1741937655888,0.255226,82280.0,82278.0,0.00340995]
[1741937656064,0.243075,82279.0,82278.0,0.00340995]
[1741937656430,0.255228,82279.0,82278.0,0.00340995]
[1741937656646,0.255222,82282.0,82279.0,0.243075]
[1741937656847,0.243071,82281.0,82278.0,0.24648495]
[1741937657043,0.243075,82279.0,82278.0,0.00640995]
[1741937657471,0.255228,82279.0,82278.0,0.00340995]
[1741937657762,0.33860807,82279.0,82278.0,0.00040995]
[1741937658818,0.255228,82279.0,82278.0,0.00340995]
[1741937658985,0.555228,82279.0,82278.0,0.00340995]
[1741937660129,0.555228,82279.0,82278.0,0.00640995]
[1741937660332,0.555228,82279.0,82278.0,0.00340995]
[1741937660668,0.555228,82279.0,82278.0,0.00240995]
[1741937660882,0.555228,82279.0,82278.0,0.00440995]
[1741937661016,0.555228,82279.0,82278.0,0.00240995]
[1741937661420,0.555228,82279.0,82278.0,0.00440995]
[1741937663176,0.555228,82279.0,82278.0,0.00474815]
[1741937665425,0.67518889,82279.0,82278.0,0.00474815]
[1741937665848,0.555228,82279.0,82278.0,0.00474815]
[1741937666262,0.555228,82279.0,82278.0,0.00274815]
[1741937667214,0.555228,82279.0,82278.0,0.00074815]
[1741937675360,0.5553971,82279.0,82278.0,0.00074815]
[1741937678575,0.3001691,82279.0,82278.0,0.00074815]
[1741937678826,0.0001691,82279.0,82278.0,0.33847915]
[1741937680389,0.0001691,82279.0,82278.0,0.34147915]
[1741937681271,0.0001691,82279.0,82278.0,0.36173443]
[1741937681475,0.0001691,82279.0,82278.0,0.34247915]
[1741937681685,0.0001691,82279.0,82278.0,0.34747915]
[1741937681908,0.20917028,82290.0,82287.0,0.24305]
[1741937682111,0.243042,82290.0,82287.0,0.24305]
[1741937682316,0.243042,82290.0,82288.0,0.0799]
[1741937682667,0.243037,82292.0,82288.0,0.322947]
[1741937683344,0.243045,82289.0,82288.0,0.0799]
[1741937683517,0.255197,82289.0,82288.0,0.0799]
[1741937683699,0.243043,82290.0,82288.0,0.0799]
[1741937684249,0.243045,82289.0,82288.0,0.0799]
[1741937684379,0.255197,82289.0,82288.0,0.0809]
[1741937684584,0.243043,82290.0,82288.0,0.0799]
[1741937684931,0.243043,82290.0,82288.0,0.0819]
[1741937685223,0.255191,82291.0,82288.0,0.0799]
[1741937685652,0.243064,82283.0,82281.0,0.0781]
[1741937685795,0.20012341,82284.0,82281.0,0.0781]
[1741937686006,0.243065,82283.0,82281.0,0.0781]
[1741937686433,0.25521,82285.0,82281.0,0.0781]
[1741937686989,0.243062,82284.0,82281.0,0.0781]
[1741937687322,0.243062,82284.0,82281.0,0.0861]
[1741937687323,0.243065,82283.0,82281.0,0.0861]
[1741937687518,0.243065,82283.0,82281.0,0.0821]
[1741937687759,0.243065,82283.0,82281.0,0.0781]
[1741937687986,0.243066,82282.0,82281.0,0.0811]
[1741937688161,0.255213,82284.0,82281.0,0.0811]
[1741937688362,0.255207,82286.0,82281.0,0.0811]
[1741937688593,0.37161257,82291.0,82286.0,0.012152]
[1741937688765,0.243045,82289.0,82285.0,0.255209]
[1741937688970,0.243045,82289.0,82285.0,0.243057]
[1741937689174,0.243049,82288.0,82285.0,0.243057]
[1741937689419,0.243053,82287.0,82283.0,0.255207]
[1741937690329,0.243054,82286.0,82282.0,0.243061]
[1741937690770,0.243054,82286.0,82283.0,0.006]
[1741937690980,0.255213,82284.0,82283.0,0.006]
[1741937691381,0.255213,82284.0,82283.0,0.003]
[1741937691534,0.255222,82281.0,82278.0,0.00074815]
[1741937691858,0.243072,82280.0,82278.0,0.00074815]
[1741937692092,0.243075,82279.0,82278.0,0.00074815]
[1741937692495,0.255228,82279.0,82278.0,0.00074815]
[1741937693511,0.243075,82279.0,82278.0,0.00878522]
[1741937693774,0.255228,82279.0,82278.0,0.00074815]
[1741937693993,0.255228,82279.0,82278.0,0.00374815]
[1741937694192,0.255228,82279.0,82278.0,0.00674815]
[1741937694387,0.255228,82279.0,82278.0,0.012327]
[1741937694689,0.243072,82280.0,82278.0,0.012327]
[1741937695104,0.243075,82279.0,82278.0,0.012327]
[1741937695541,0.243069,82282.0,82279.0,0.243073]
[1741937695743,0.243069,82282.0,82278.0,0.012327]
[1741937695744,0.243072,82280.0,82278.0,0.012327]
[1741937695920,0.243075,82279.0,82278.0,0.00674815]
[1741937696159,0.243075,82279.0,82278.0,0.00074815]
[1741937696367,0.243075,82279.0,82278.0,0.00374815]
[1741937696573,0.243075,82279.0,82278.0,0.00674815]
[1741937696952,0.243075,82279.0,82278.0,0.00374815]
[1741937697531,0.243075,82279.0,82278.0,0.00674815]
[1741937698764,0.012152,82287.0,82282.0,0.243063]
[1741937699116,0.243055,82286.0,82282.0,0.243064]
[1741937699320,0.243066,82283.0,82280.0,0.255222]
[1741937699521,0.243068,82282.0,82279.0,0.255223]
[1741937699713,0.243069,82281.0,82279.0,0.24307]
[1741937699969,0.243072,82280.0,82278.0,0.00074815]
[1741937700322,0.255228,82279.0,82278.0,0.00074815]
[1741937700934,0.377938,82285.0,82280.0,0.092553]
[1741937701135,0.255208,82286.0,82283.0,0.24306]
[1741937701338,0.243056,82286.0,82284.0,0.243059]
[1741937701513,0.13484,82287.0,82284.0,0.243059]
[1741937701721,0.43484,82287.0,82286.0,0.243054]
[1741937701937,0.43484,82287.0,82285.0,0.243057]
[1741937702140,0.677893,82287.0,82284.0,0.243059]
[1741937702661,0.243059,82285.0,82282.0,0.243066]
[1741937702801,0.255225,82280.0,82279.0,0.002]
[1741937703001,0.255225,82280.0,82278.0,0.00374815]
[1741937703304,0.255213,82284.0,82279.0,0.012153]
[1741937703666,0.243065,82283.0,82280.0,0.243071]
[1741937704128,0.243065,82284.0,82281.0,0.243067]
[1741937704331,0.255207,82286.0,82282.0,0.243064]
[1741937704685,0.243063,82284.0,82281.0,0.243067]
[1741937705012,0.243065,82283.0,82280.0,0.255225]
[1741937705203,0.243054,82286.0,82281.0,0.012153]
[1741937705408,0.3,82287.0,82286.0,0.255206]
[1741937705609,0.3,82286.0,82285.0,0.243056]
[1741937705765,0.243058,82285.0,82282.0,0.2938611]
[1741937705971,0.24306,82284.0,82282.0,0.0452]
[1741937706951,0.243058,82285.0,82282.0,0.288264]
[1741937707125,0.243061,82284.0,82282.0,0.0452]
[1741937707328,0.0001691,82290.0,82286.0,0.012152]
[1741937707541,0.012152,82289.0,82284.0,0.255208]
[1741937707705,0.312152,82289.0,82287.0,0.00559242]
[1741937707918,0.543047,82289.0,82286.0,0.243052]
[1741937708117,0.543047,82289.0,82288.0,0.00559168]
[1741937708336,0.243048,82288.0,82287.0,0.00559242]
[1741937708531,0.543047,82289.0,82286.0,0.243053]
[1741937708731,0.543047,82289.0,82284.0,0.012153]
[1741937708732,0.0001691,82290.0,82289.0,0.318845]
[1741937709082,0.0001691,82290.0,82289.0,0.330997]
[1741937709280,0.0001691,82290.0,82289.0,0.0758]
[1741937709613,0.0001691,82290.0,82289.0,0.318845]
[1741937710429,0.0001691,82290.0,82289.0,0.0758]
[1741937710633,0.0001691,82290.0,82289.0,0.0768]
[1741937711127,0.3001691,82290.0,82289.0,0.0768]
[1741937711330,0.3001691,82290.0,82289.0,0.320845]
[1741937711732,0.3001691,82290.0,82289.0,0.0778]
[1741937711941,0.5432111,82290.0,82289.0,0.0778]
[1741937712335,0.3001691,82290.0,82289.0,0.0778]
[1741937713041,0.41889401,82290.0,82289.0,0.0778]
[1741937713241,0.3123211,82290.0,82289.0,0.0778]
[1741937713435,0.5553631,82290.0,82289.0,0.0778]
[1741937714802,0.5553631,82290.0,82289.0,0.002]
[1741937719950,0.5553631,82290.0,82289.0,0.00757167]
[1741937720151,0.5553631,82290.0,82289.0,0.002]
[1741937722488,0.5553631,82290.0,82289.0,0.00756832]
[1741937722895,0.5432111,82290.0,82289.0,0.00756832]
[1741937723697,0.5553631,82290.0,82289.0,0.00756832]
[1741937727248,0.5553631,82290.0,82289.0,0.08806832]
[1741937727880,0.2432111,82290.0,82289.0,0.08806832]
[1741937728064,0.0001691,82290.0,82289.0,0.08806832]
[1741937728403,0.2432111,82290.0,82289.0,0.08806832]
[1741937728599,0.2553631,82290.0,82289.0,0.08806832]
[1741937729943,0.2553631,82290.0,82289.0,0.00756832]
[1741937732481,0.2553631,82290.0,82289.0,0.01412429]
[1741937733474,0.2553631,82290.0,82289.0,0.002]
[1741937733645,0.2553631,82290.0,82289.0,0.01412213]
[1741937734677,0.2553631,82290.0,82289.0,0.002]
[1741937735323,0.2553631,82290.0,82289.0,0.01412213]
[1741937735531,0.2553631,82290.0,82289.0,0.002]
[1741937735738,0.2553631,82290.0,82289.0,0.01412213]
[1741937735898,0.2553631,82290.0,82289.0,0.002]
[1741937736093,0.2553631,82290.0,82289.0,0.01412213]
[1741937737825,0.2553631,82290.0,82289.0,0.002]
[1741937738449,0.2553631,82290.0,82289.0,0.01412213]
[1741937745934,0.2553631,82290.0,82289.0,0.002]
[1741937746719,0.2553631,82290.0,82289.0,0.01412213]
[1741937747210,0.2553631,82290.0,82289.0,0.002]
[1741937748664,0.5553631,82290.0,82289.0,0.002]
[1741937752120,0.5553631,82290.0,82289.0,0.01412294]
[1741937752519,0.5553631,82290.0,82289.0,0.002]
[1741937759613,0.6901231,82290.0,82289.0,0.002]
[1741937762694,0.70466395,82290.0,82289.0,0.002]
[1741937763265,0.39794697,82290.0,82289.0,0.002]
[1741937763454,0.64098897,82290.0,82289.0,0.002]
[1741937763817,0.24306,82284.0,82283.0,0.0003384]
[1741937763945,0.255213,82284.0,82283.0,0.0003384]
[1741937765323,0.389973,82284.0,82283.0,0.0013384]
[1741937766159,0.146913,82284.0,82283.0,0.0023384]
[1741937766951,0.389973,82284.0,82283.0,0.0023384]
[1741937767151,0.52447474,82284.0,82283.0,0.0023384]
[1741937768813,0.255244,82274.0,82273.0,0.07532475]
[1741937769386,0.255244,82274.0,82273.0,0.08707762]
[1741937769841,0.255244,82274.0,82273.0,0.07532475]
[1741937770245,0.255244,82274.0,82273.0,0.09107762]
[1741937770648,0.255244,82274.0,82273.0,0.08332475]
[1741937771291,0.255244,82274.0,82273.0,0.09507762]
[1741937772481,0.543081,82277.0,82273.0,0.09507762]
[1741937772674,0.1348,82280.0,82274.0,0.243087]
[1741937773044,0.243078,82278.0,82275.0,0.25484296]
[1741937773345,0.243076,82279.0,82275.0,0.25484296]
[1741937773483,0.1348,82280.0,82277.0,0.243079]
[1741937773682,0.243077,82279.0,82275.0,0.26699996]
[1741937773899,0.377872,82280.0,82278.0,0.01175509]
[1741937774101,0.377872,82280.0,82276.0,0.243084]
[1741937774307,0.690025,82280.0,82279.0,0.01175414]
[1741937774514,0.243084,82276.0,82275.0,0.003]
[1741937774845,0.243084,82276.0,82273.0,0.32141575]
[1741937775046,0.243084,82276.0,82275.0,0.002]
[1741937775184,0.243084,82276.0,82273.0,0.07832475]
[1741937775388,0.012154,82277.0,82273.0,0.07832475]
[1741937775638,0.255244,82274.0,82273.0,0.07832475]
[1741937775779,0.255244,82274.0,82273.0,0.07532475]
[1741937776629,0.243104,82269.0,82268.0,0.0810692]
[1741937777032,0.243102,82270.0,82268.0,0.0810692]
[1741937778259,0.243104,82269.0,82268.0,0.0810692]
[1741937778412,0.243104,82269.0,82268.0,0.0860692]
[1741937778601,0.255259,82269.0,82268.0,0.0860692]
[1741937779412,0.255259,82269.0,82268.0,0.0910692]
[1741937780076,0.255259,82269.0,82268.0,0.10199182]
[1741937780247,0.255259,82269.0,82268.0,0.09699182]
[1741937780697,0.243102,82270.0,82268.0,0.10199182]
[1741937780873,0.243102,82270.0,82268.0,0.09699182]
[1741937781052,0.243104,82269.0,82268.0,0.09699182]
[1741937781256,0.255259,82269.0,82268.0,0.10199182]
[1741937784031,0.243066,82282.0,82279.0,0.331922]
[1741937784198,0.243064,82283.0,82282.0,0.01091728]
[1741937784402,0.31537128,82284.0,82283.0,0.012153]
[1741937784604,0.31537128,82284.0,82283.0,0.255216]
[1741937784809,0.01537128,82284.0,82283.0,0.26613285]
[1741937785174,0.01537128,82284.0,82283.0,0.25397985]
[1741937785769,0.08836453,82284.0,82283.0,0.01091685]